bitfinex/quotes_BTCUSD_20211001
["timestamp","ask_amount","ask_price","bid_price","bid_amount"]
[1633078427026,0.55715995,44921.0,44920.0,1.21327646]
[1633078427224,0.55715995,44921.0,44920.0,1.17327646]
[1633078427422,0.60715995,44921.0,44920.0,1.17327646]
[1633078427890,1.98035995,44921.0,44920.0,0.6800501]
[1633078428026,0.334057,44916.0,44904.0,0.011]
[1633078428227,0.00120555,44910.0,44904.0,0.011]
[1633078428425,0.00120555,44910.0,44905.0,0.66808]
[1633078428824,0.10006129,44915.0,44908.0,0.0911078]
[1633078429027,0.10006129,44915.0,44914.0,0.23739317]
[1633078429223,0.10006129,44915.0,44914.0,0.90547317]
[1633078429423,0.10006129,44915.0,44914.0,0.66808]
[1633078429424,6.129e-05,44915.0,44914.0,0.66808]
[1633078429827,6.129e-05,44915.0,44914.0,0.71008]
[1633078430224,0.33409429,44915.0,44914.0,0.71008]
[1633078430824,6.129e-05,44915.0,44914.0,0.71008]
[1633078431223,6.129e-05,44915.0,44914.0,0.66808]
[1633078432026,6.129e-05,44915.0,44914.0,0.70608]
[1633078433626,6.129e-05,44915.0,44914.0,0.66808]
[1633078434029,6.129e-05,44915.0,44914.0,0.70608]
[1633078435228,6.129e-05,44915.0,44914.0,0.66808]
[1633078436033,6.129e-05,44915.0,44914.0,0.70608]
[1633078437435,6.129e-05,44915.0,44914.0,0.66808]
[1633078438035,6.129e-05,44915.0,44914.0,0.70508]
[1633078438235,0.33409529,44915.0,44914.0,0.70508]
[1633078438435,0.38409529,44915.0,44914.0,0.70508]
[1633078439434,0.38409529,44915.0,44914.0,0.66808]
[1633078440035,0.38409529,44915.0,44914.0,0.70608]
[1633078440636,0.05006129,44915.0,44914.0,0.70608]
[1633078441037,6.129e-05,44915.0,44914.0,0.70608]
[1633078442037,6.129e-05,44915.0,44914.0,0.66808]
[1633078442236,6.129e-05,44915.0,44914.0,0.70808]
[1633078442909,6.129e-05,44915.0,44914.0,1.85416668]
[1633078443042,6.129e-05,44915.0,44914.0,2.06805035]
[1633078443240,6.129e-05,44915.0,44914.0,0.7309101]
[1633078443444,6.129e-05,44915.0,44914.0,0.69038]
[1633078444238,6.129e-05,44915.0,44914.0,0.72738]
[1633078445638,6.129e-05,44915.0,44914.0,0.69038]
[1633078445838,6.129e-05,44915.0,44914.0,0.638251]
[1633078446239,6.129e-05,44915.0,44914.0,0.675251]
[1633078447438,6.129e-05,44915.0,44914.0,0.638251]
[1633078448239,6.129e-05,44915.0,44914.0,0.677251]
[1633078449442,0.05698129,44915.0,44914.0,0.677251]
[1633078449640,0.05698129,44915.0,44914.0,0.638251]
[1633078450241,0.05698129,44915.0,44914.0,0.679251]
[1633078450844,0.05698129,44915.0,44914.0,0.61478948]
[1633078451043,0.05698129,44915.0,44914.0,0.60709348]
[1633078451646,0.05698129,44915.0,44914.0,0.56609348]
[1633078452246,0.05698129,44915.0,44914.0,0.60839156]
[1633078452846,0.05698129,44915.0,44914.0,0.608811]
[1633078453449,0.05698129,44915.0,44914.0,0.567811]
[1633078454249,0.05698129,44915.0,44914.0,0.606811]
[1633078454913,0.05698129,44915.0,44914.0,0.584511]
[1633078455451,0.05698129,44915.0,44914.0,0.545511]
[1633078456253,0.05698129,44915.0,44914.0,0.583511]
[1633078458253,0.05698129,44915.0,44914.0,0.621511]
[1633078458455,0.05698129,44915.0,44914.0,0.583511]
[1633078459859,0.05698129,44915.0,44914.0,0.545511]
[1633078460254,0.05698129,44915.0,44914.0,0.583511]
[1633078461461,0.05698129,44915.0,44914.0,0.545511]
[1633078462262,0.05698129,44915.0,44914.0,0.582511]
[1633078463669,0.05698129,44915.0,44914.0,0.545511]
[1633078464264,0.05698129,44915.0,44914.0,0.585511]
[1633078465664,0.05698129,44915.0,44914.0,0.545511]
[1633078466269,0.05698129,44915.0,44914.0,0.583511]
[1633078467667,0.05698129,44915.0,44914.0,0.545511]
[1633078468267,0.05698129,44915.0,44914.0,0.583511]
[1633078468670,6.129e-05,44915.0,44914.0,0.583511]
[1633078468872,0.05698129,44915.0,44914.0,0.583511]
[1633078469268,0.05698129,44915.0,44914.0,0.81718123]
[1633078469668,0.05698129,44915.0,44914.0,0.545511]
[1633078470369,0.05698129,44915.0,44914.0,0.584511]
[1633078471171,0.05698129,44915.0,44914.0,0.86965058]
[1633078471367,0.05698129,44915.0,44914.0,0.89195058]
[1633078471570,0.05698129,44915.0,44914.0,0.606811]
[1633078471970,0.05698129,44915.0,44914.0,0.567811]
[1633078472368,0.05698129,44915.0,44914.0,0.605811]
[1633078473776,0.05698129,44915.0,44914.0,0.567811]
[1633078474669,0.05698129,44915.0,44914.0,0.605811]
[1633078474869,0.05698129,44915.0,44914.0,0.89941559]
[1633078475271,0.05698129,44915.0,44914.0,0.605811]
[1633078476070,0.05698129,44915.0,44914.0,0.567811]
[1633078476470,0.05698129,44915.0,44914.0,0.604811]
[1633078477070,0.05698129,44915.0,44914.0,0.60309348]
[1633078477270,0.05698129,44915.0,44914.0,0.60209348]
[1633078477669,0.05698129,44915.0,44914.0,0.58409348]
[1633078478071,0.05698129,44915.0,44914.0,0.54709348]
[1633078478269,0.05698129,44915.0,44914.0,0.54752286]
[1633078478471,0.05698129,44915.0,44914.0,0.58552286]
[1633078479876,0.05698129,44915.0,44914.0,0.54752286]
[1633078480477,0.05505493,44915.0,44914.0,0.58552286]
[1633078480681,0.222663,44917.0,44914.0,0.58552286]
[1633078480882,0.222663,44917.0,44916.0,0.23566411]
[1633078481076,0.222663,44917.0,44916.0,0.78275759]
[1633078481283,0.217663,44917.0,44916.0,0.78275759]
[1633078481678,0.217663,44917.0,44916.0,1.07738216]
[1633078482077,0.217663,44917.0,44916.0,0.78275759]
[1633078482679,0.217663,44917.0,44916.0,0.81975759]
[1633078482883,0.92313961,44920.0,44916.0,0.82101548]
[1633078483083,0.92313961,44920.0,44919.0,0.00124301]
[1633078483282,0.92313961,44920.0,44919.0,0.52603649]
[1633078483481,0.92313961,44920.0,44919.0,0.52479348]
[1633078483681,1.25712961,44920.0,44919.0,0.8162317]
[1633078483885,0.92313961,44920.0,44919.0,0.8162317]
[1633078484283,3.64807593,44907.0,44904.0,1.84028603]
[1633078484488,3.64807593,44907.0,44906.0,8.56818346]
[1633078484685,3.64807593,44907.0,44906.0,9.58988942]
[1633078485086,3.64807593,44907.0,44906.0,9.67004967]
[1633078485284,3.64807593,44907.0,44906.0,9.77147439]
[1633078486485,3.64807593,44907.0,44906.0,9.79377439]
[1633078486686,3.64792591,44907.0,44906.0,9.83777439]
[1633078487088,3.64792591,44907.0,44906.0,9.83656508]
[1633078487288,3.64792591,44907.0,44906.0,9.81821103]
[1633078487684,3.64792591,44907.0,44906.0,9.48421603]
[1633078488087,3.64792591,44907.0,44906.0,9.44021603]
[1633078488686,3.64792591,44907.0,44906.0,9.81623403]
[1633078489889,2.70637018,44907.0,44906.0,9.77423403]
[1633078490690,2.70637018,44907.0,44906.0,9.81723403]
[1633078491890,2.70637018,44907.0,44906.0,9.77423403]
[1633078492691,2.70637018,44907.0,44906.0,9.81823403]
[1633078493690,2.76329018,44907.0,44906.0,9.81823403]
[1633078493888,2.76329018,44907.0,44906.0,9.77423403]
[1633078494690,2.76329018,44907.0,44906.0,9.81623403]
[1633078497495,2.76329018,44907.0,44906.0,9.65270123]
[1633078497895,2.76329018,44907.0,44906.0,9.61422623]
[1633078498094,2.76329018,44907.0,44906.0,9.57222623]
[1633078498693,2.76329018,44907.0,44906.0,9.61522623]
[1633078500097,2.76329018,44907.0,44906.0,9.57222623]
[1633078500695,2.76329018,44907.0,44906.0,9.61322623]
[1633078501295,1.53571963,44907.0,44906.0,9.61322623]
[1633078501496,1.53571963,44907.0,44906.0,9.71322623]
[1633078501696,1.53614859,44907.0,44906.0,9.71322623]
[1633078501897,1.53614859,44907.0,44906.0,9.67222623]
[1633078502096,1.53114859,44907.0,44906.0,9.67222623]
[1633078502699,1.53114859,44907.0,44906.0,9.71522623]
[1633078502965,1.53114859,44907.0,44906.0,9.61522623]
[1633078504099,1.53114859,44907.0,44906.0,9.47080151]
[1633078504699,1.53114859,44907.0,44906.0,9.50980151]
[1633078505302,1.53114859,44907.0,44906.0,10.79362259]
[1633078505964,1.53114859,44907.0,44906.0,10.79321159]
[1633078506101,1.53114859,44907.0,44906.0,10.81156564]
[1633078506300,1.53114859,44907.0,44906.0,10.77256564]
[1633078506501,1.53114859,44907.0,44906.0,10.77262564]
[1633078506701,1.53114859,44907.0,44906.0,10.81362564]
[1633078508102,1.53114859,44907.0,44906.0,10.77262564]
[1633078508702,1.53114859,44907.0,44906.0,10.81662564]
[1633078509306,1.5323528,44907.0,44906.0,10.81662564]
[1633078510105,1.5323528,44907.0,44906.0,10.77262564]
[1633078510706,1.5323528,44907.0,44906.0,10.81562564]
[1633078511309,0.92313961,44920.0,44914.0,0.333961]
[1633078511514,0.92313961,44920.0,44919.0,0.78166609]
[1633078511711,0.92313961,44920.0,44919.0,1.40884115]
[1633078511973,0.92313961,44920.0,44919.0,0.69162634]
[1633078512311,0.92313961,44920.0,44919.0,1.400173]
[1633078512511,0.92313961,44920.0,44919.0,1.11825101]
[1633078512713,0.92313961,44920.0,44919.0,1.15725101]
[1633078513113,0.92313961,44920.0,44919.0,1.15731101]
[1633078513311,0.92313961,44920.0,44919.0,1.49121501]
[1633078513711,0.92313961,44920.0,44919.0,1.57330744]
[1633078513915,0.92313961,44920.0,44919.0,1.49121501]
[1633078514112,0.92313961,44920.0,44919.0,1.45221501]
[1633078514912,0.92313961,44920.0,44919.0,1.49121501]
[1633078515914,0.92313961,44920.0,44919.0,1.59121501]
[1633078516114,0.92313961,44920.0,44919.0,1.55221501]
[1633078516515,0.92313961,44920.0,44919.0,2.11021501]
[1633078516915,0.92313961,44920.0,44919.0,2.15021501]
[1633078518115,0.92313961,44920.0,44919.0,2.11021501]
[1633078518516,0.92320456,44920.0,44919.0,2.11021501]
[1633078518915,0.92320456,44920.0,44919.0,2.15221501]
[1633078520120,0.92320456,44920.0,44919.0,2.11021501]
[1633078520722,0.92320456,44920.0,44919.0,2.16021501]
[1633078520989,0.92320456,44920.0,44919.0,2.15421501]
[1633078521721,0.92320456,44920.0,44919.0,2.30421501]
[1633078522120,0.92320456,44920.0,44919.0,2.26021501]
[1633078522920,0.91820456,44920.0,44919.0,2.30321501]
[1633078523723,0.91820456,44920.0,44919.0,2.08340686]
[1633078523991,0.91820456,44920.0,44919.0,2.03214052]
[1633078524123,0.9194238,44920.0,44919.0,1.88914052]
[1633078524522,0.91820456,44920.0,44919.0,1.78914052]
[1633078524926,0.91820456,44920.0,44919.0,1.82814052]
[1633078525523,0.91820456,44920.0,44919.0,1.92814052]
[1633078526133,0.91820456,44920.0,44919.0,1.92942453]
[1633078526323,0.91820456,44920.0,44919.0,1.89042453]
[1633078526528,0.91820456,44920.0,44919.0,2.09480449]
[1633078527000,0.91820456,44920.0,44919.0,2.13652113]
[1633078527128,0.91320456,44920.0,44919.0,2.13652113]
[1633078528328,0.91320456,44920.0,44919.0,2.09652113]
[1633078528927,0.91320456,44920.0,44919.0,2.14052113]
[1633078530527,0.91320456,44920.0,44919.0,2.09652113]
[1633078530727,0.91320456,44920.0,44919.0,1.89214117]
[1633078530927,0.91320456,44920.0,44919.0,1.93614117]
[1633078531330,0.91320456,44920.0,44919.0,1.93493317]
[1633078531729,0.91320456,44920.0,44919.0,1.93364916]
[1633078532330,0.91320456,44920.0,44919.0,1.88964916]
[1633078532993,0.91320456,44920.0,44919.0,1.93264916]
[1633078533331,0.91320456,44920.0,44919.0,1.94364916]
[1633078533935,0.91320456,44920.0,44919.0,1.9448803]
[1633078534932,0.91320456,44920.0,44919.0,1.9438803]
[1633078536333,0.91320456,44920.0,44919.0,1.9018803]
[1633078536932,0.91320456,44920.0,44919.0,2.01397352]
[1633078537333,0.91320456,44920.0,44919.0,1.9438803]
[1633078537536,1.43462313,44920.0,44919.0,0.74392864]
[1633078537735,1.71173823,44920.0,44919.0,0.72283664]
[1633078538333,2.00893957,44920.0,44919.0,0.72283664]
[1633078538735,1.50792891,44920.0,44919.0,0.68083664]
[1633078538934,1.50792891,44920.0,44919.0,0.71783664]
[1633078539334,1.84191091,44920.0,44919.0,0.71783664]
[1633078539737,2.04054903,44920.0,44919.0,0.71783664]
[1633078540340,2.04054903,44920.0,44919.0,0.68083664]
[1633078540537,1.84191091,44920.0,44919.0,0.68083664]
[1633078540936,1.84191091,44920.0,44919.0,0.81383664]
[1633078541535,2.04412673,44920.0,44919.0,0.81383664]
[1633078542939,2.04412673,44920.0,44919.0,0.82283664]
[1633078543541,2.04359663,44920.0,44919.0,0.82283664]
[1633078544343,2.04359663,44920.0,44919.0,0.78083664]
[1633078544743,1.81701163,44920.0,44919.0,0.78083664]
[1633078545012,2.04359663,44920.0,44919.0,0.28083664]
[1633078545144,2.04412673,44920.0,44919.0,0.30783664]
[1633078545550,1.71014473,44920.0,44907.0,1e-08]
[1633078545746,0.60784824,44919.0,44907.0,1e-08]
[1633078545948,0.00125822,44908.0,44907.0,1e-08]
[1633078546145,0.00125822,44908.0,44907.0,1.49735377]
[1633078546346,0.38634486,44916.0,44907.0,1.49735377]
[1633078546546,0.00126118,44914.0,44907.0,1.49735377]
[1633078546746,0.00126118,44914.0,44912.0,0.20367245]
[1633078546950,0.00126118,44914.0,44913.0,0.66805]
[1633078547149,0.22446118,44914.0,44913.0,0.66805]
[1633078547349,0.27446118,44914.0,44913.0,0.66805]
[1633078547747,0.60851018,44914.0,44913.0,0.66805]
[1633078548011,0.6957401,44914.0,44913.0,0.66805]
[1633078548752,0.6844401,44914.0,44913.0,0.66805]
[1633078548945,0.6844401,44914.0,44913.0,0.68805]
[1633078549151,0.7034401,44914.0,44913.0,0.68805]
[1633078549749,1.0,44913.0,44907.0,0.02230001]
[1633078549954,0.00124686,44908.0,44907.0,1e-08]
[1633078550152,0.575954,44908.0,44907.0,1e-08]
[1633078550549,0.27783186,44908.0,44907.0,1e-08]
[1633078550750,0.27783186,44908.0,44907.0,0.76805001]
[1633078550751,0.05124686,44908.0,44907.0,0.76805001]
[1633078551017,0.00124686,44908.0,44907.0,0.76805001]
[1633078551152,0.02324686,44908.0,44907.0,0.79805001]
[1633078551351,0.02324686,44908.0,44907.0,1.05214387]
[1633078551554,0.022,44908.0,44907.0,1.07444387]
[1633078551757,0.022,44908.0,44907.0,1.00186717]
[1633078552553,0.022,44908.0,44907.0,0.90186717]
[1633078552752,0.53743292,44913.0,44907.0,0.87186717]
[1633078553151,0.53743292,44913.0,44907.0,0.90486717]
[1633078553351,0.00171494,44908.0,44907.0,0.90486717]
[1633078553749,0.00171494,44908.0,44907.0,0.72335001]
[1633078554553,0.00171494,44908.0,44907.0,0.69035001]
[1633078554758,0.00171494,44908.0,44907.0,0.69161795]
[1633078555153,0.00171494,44908.0,44907.0,0.72261795]
[1633078555551,0.00171494,44908.0,44907.0,1.12261795]
[1633078555753,0.00171494,44908.0,44907.0,0.92431826]
[1633078556359,0.00171494,44908.0,44907.0,0.89331826]
[1633078557157,0.00171494,44908.0,44907.0,0.92431826]
[1633078558158,0.00171494,44908.0,44907.0,0.92305032]
[1633078558556,0.00171494,44908.0,44907.0,0.89205032]
[1633078559155,0.00171494,44908.0,44907.0,0.92305032]
[1633078560757,0.00171494,44908.0,44907.0,0.89205032]
[1633078561163,0.00171494,44908.0,44907.0,0.92305032]
[1633078562757,0.00171494,44908.0,44907.0,0.89205032]
[1633078563359,0.00171494,44908.0,44907.0,0.72135001]
[1633078564563,0.00171494,44908.0,44907.0,1.30727021]
[1633078564764,0.00171494,44908.0,44907.0,0.90727021]
[1633078564966,0.00171494,44908.0,44907.0,0.69035001]
[1633078565364,0.00171494,44908.0,44907.0,0.72235001]
[1633078566763,0.00171494,44908.0,44907.0,0.69035001]
[1633078567364,0.00171494,44908.0,44907.0,0.72135001]
[1633078567565,0.00171494,44908.0,44907.0,0.90444026]
[1633078567769,0.00171494,44908.0,44907.0,1.23843126]
[1633078568163,0.00300461,44908.0,44907.0,0.72135001]
[1633078568564,0.00300461,44908.0,44907.0,0.69035001]
[1633078569365,0.00300461,44908.0,44907.0,0.72135001]
[1633078570369,0.00171494,44908.0,44907.0,0.72135001]
[1633078570766,0.00171494,44908.0,44907.0,0.69035001]
[1633078571370,0.00171494,44908.0,44907.0,0.72135001]
[1633078572567,0.00171494,44908.0,44907.0,0.69035001]
[1633078572769,0.29731156,44912.0,44908.0,1e-08]
[1633078572970,0.29731156,44912.0,44909.0,0.0223]
[1633078575972,0.29731156,44912.0,44911.0,2.47294058]
[1633078576174,0.29731156,44912.0,44911.0,2.49524058]
[1633078577375,0.29731156,44912.0,44911.0,0.0513]
[1633078577575,0.31931156,44912.0,44911.0,0.0513]
[1633078578033,0.31931156,44912.0,44911.0,0.0223]
[1633078578175,0.29731156,44912.0,44911.0,0.0223]
[1633078578574,0.29731156,44912.0,44911.0,0.69035]
[1633078579774,0.29731156,44912.0,44911.0,0.71935]
[1633078579977,0.32031156,44912.0,44911.0,0.71935]
[1633078580573,0.07100217,44912.0,44911.0,0.71935]
[1633078581578,0.25187615,44912.0,44911.0,0.69035]
[1633078581978,0.25187615,44912.0,44911.0,0.71935]
[1633078582179,0.27387615,44912.0,44911.0,0.71935]
[1633078583577,0.25187615,44912.0,44911.0,0.69035]
[1633078583779,0.33065615,44912.0,44911.0,0.71935]
[1633078584580,0.30865615,44912.0,44911.0,0.69035]
[1633078584979,0.54634655,44912.0,44911.0,0.69035]
[1633078585182,0.30865615,44912.0,44911.0,0.69035]
[1633078585984,0.33065615,44912.0,44911.0,0.71935]
[1633078587383,0.12678217,44912.0,44911.0,0.71935]
[1633078587583,0.10478217,44912.0,44911.0,0.69035]
[1633078587982,0.12678217,44912.0,44911.0,0.71935]
[1633078589184,0.12678217,44912.0,44911.0,1.01955162]
[1633078589387,0.10478217,44912.0,44911.0,1.5497918]
[1633078589788,0.12578217,44912.0,44911.0,1.5787918]
[1633078590387,0.12578217,44912.0,44911.0,1.27859018]
[1633078590787,0.12578217,44912.0,44911.0,1.27735]
[1633078591188,0.12578217,44912.0,44911.0,1.5763763]
[1633078591386,0.12578217,44912.0,44911.0,1.27735]
[1633078591586,0.10478217,44912.0,44911.0,1.24835]
[1633078591787,0.10478217,44912.0,44911.0,1.597829]
[1633078592187,0.10478217,44912.0,44911.0,1.27935]
[1633078593190,0.10478217,44912.0,44911.0,1.24835]
[1633078594187,0.10478217,44912.0,44911.0,1.58192606]
[1633078594587,0.10478217,44912.0,44911.0,1.27935]
[1633078595391,0.09978217,44912.0,44911.0,1.27935]
[1633078595590,0.09978217,44912.0,44911.0,1.24835]
[1633078595790,0.09978217,44912.0,44911.0,1.33841427]
[1633078596190,0.09978217,44912.0,44911.0,1.37041427]
[1633078597788,0.09978217,44912.0,44911.0,1.28035]
[1633078597989,0.09978217,44912.0,44911.0,0.28035]
[1633078598389,0.09978217,44912.0,44911.0,0.91634]
[1633078599193,0.09978217,44912.0,44911.0,0.93864]
[1633078599392,0.09978217,44912.0,44911.0,0.97164]
[1633078600593,0.08478201,44912.0,44911.0,0.97164]
[1633078603196,0.07286823,44912.0,44911.0,0.97164]
[1633078603396,0.07286823,44912.0,44911.0,1.19656535]
[1633078604200,0.07286823,44912.0,44911.0,0.97164]
[1633078604400,0.07286823,44912.0,44911.0,1.27061259]
[1633078605198,0.07286823,44912.0,44911.0,0.97164]
[1633078605398,0.07286823,44912.0,44911.0,0.93864]
[1633078606500,0.07196822,44912.0,44911.0,0.97664]
[1633078607503,0.07196822,44912.0,44911.0,1.01464]
[1633078607898,0.07196822,44912.0,44911.0,0.97664]
[1633078608098,0.07196822,44912.0,44911.0,0.93864]
[1633078609499,0.07196822,44912.0,44911.0,0.97164]
[1633078610303,0.07196822,44912.0,44911.0,0.93864]
[1633078611706,0.07196822,44912.0,44911.0,0.97164]
[1633078613508,0.07196822,44912.0,44911.0,1.00964]
[1633078613913,0.07121821,44912.0,44911.0,1.00964]
[1633078614169,0.07121821,44912.0,44911.0,0.97664]
[1633078614367,0.07121821,44912.0,44911.0,0.93864]
[1633078614571,0.07121821,44912.0,44911.0,0.91364]
[1633078615169,0.07121821,44912.0,44911.0,1.10314843]
[1633078615568,0.07121821,44912.0,44911.0,1.13614843]
[1633078616569,0.07121821,44912.0,44911.0,0.94664]
[1633078617176,0.07121821,44912.0,44911.0,0.91364]
[1633078617574,0.07121821,44912.0,44911.0,0.95164]
[1633078619779,0.07121821,44912.0,44911.0,0.94664]
[1633078620976,0.07121821,44912.0,44911.0,0.90864]
[1633078621577,0.07121821,44912.0,44911.0,0.94564]
[1633078622980,0.07121821,44912.0,44911.0,0.90864]
[1633078623578,0.07121821,44912.0,44911.0,0.94564]
[1633078625581,0.07121821,44912.0,44911.0,0.90864]
[1633078625783,0.07121821,44912.0,44911.0,0.94664]
[1633078627082,0.07121821,44912.0,44911.0,0.90864]
[1633078627487,0.07121821,44912.0,44911.0,0.89864]
[1633078627683,0.07121821,44912.0,44911.0,0.93664]
[1633078628484,0.07121821,44912.0,44911.0,0.936229]
[1633078629486,0.07121821,44912.0,44911.0,0.898229]
[1633078629684,0.07121821,44912.0,44911.0,0.936229]
[1633078630585,0.07121821,44912.0,44911.0,1.036229]
[1633078631186,0.07121821,44912.0,44911.0,0.998229]
[1633078631787,0.07121821,44912.0,44911.0,1.036229]
[1633078632387,0.07121821,44912.0,44911.0,1.33610194]
[1633078633186,0.07121821,44912.0,44911.0,1.036229]
[1633078633588,0.07121821,44912.0,44911.0,1.03794306]
[1633078633789,0.07121821,44912.0,44911.0,0.93794306]
[1633078634187,0.07121821,44912.0,44911.0,1.03794306]
[1633078634389,0.07121821,44912.0,44911.0,1.00794306]
[1633078634988,0.07121821,44912.0,44911.0,0.06130306]
[1633078635395,0.07121821,44912.0,44911.0,0.72929306]
[1633078635994,0.07121821,44912.0,44911.0,0.76429306]
[1633078636992,0.07121821,44912.0,44911.0,0.76549975]
[1633078637391,0.07121821,44912.0,44911.0,0.78779975]
[1633078637592,0.07121821,44912.0,44911.0,0.75279975]
[1633078637797,0.07121821,44912.0,44911.0,1.08654172]
[1633078638001,0.07121821,44912.0,44911.0,0.92189547]
[1633078638593,0.07121821,44912.0,44911.0,1.27189547]
[1633078638799,0.07121821,44912.0,44911.0,1.13378375]
[1633078638993,0.07121821,44912.0,44911.0,1.41877925]
[1633078639393,0.07121821,44912.0,44911.0,1.38377925]
[1633078639595,0.07121821,44912.0,44911.0,1.09878375]
[1633078639793,0.07121821,44912.0,44911.0,0.74878375]
[1633078639993,0.07121821,44912.0,44911.0,0.89378375]
[1633078641398,0.07121821,44912.0,44911.0,0.84878375]
[1633078641596,0.07121821,44912.0,44911.0,1.14878375]
[1633078641798,0.07121821,44912.0,44911.0,0.89378375]
[1633078642596,0.07121821,44912.0,44911.0,1.29378375]
[1633078642797,0.07121821,44912.0,44911.0,0.89378375]
[1633078643198,0.07121821,44912.0,44911.0,0.84878375]
[1633078643602,0.36900372,44912.0,44911.0,0.79029]
[1633078643802,0.36900372,44912.0,44911.0,0.83229]
[1633078643803,0.07245019,44912.0,44911.0,0.83229]
[1633078644001,0.07121821,44912.0,44911.0,0.73229]
[1633078644999,0.07121821,44912.0,44911.0,0.732079]
[1633078645201,0.07121821,44912.0,44911.0,0.690079]
[1633078646000,0.07121821,44912.0,44911.0,0.726079]
[1633078647602,0.07121821,44912.0,44911.0,0.690079]
[1633078647805,0.07121821,44912.0,44911.0,0.72059308]
[1633078648003,0.07121821,44912.0,44911.0,0.82059308]
[1633078649201,0.07121821,44912.0,44911.0,0.78559308]
[1633078650066,0.07121821,44912.0,44911.0,0.81759308]
[1633078651207,0.07121821,44912.0,44911.0,0.81741608]
[1633078651406,0.07121821,44912.0,44911.0,0.78541608]
[1633078652005,0.07121821,44912.0,44911.0,0.81841608]
[1633078653407,0.07121821,44912.0,44911.0,0.78541608]
[1633078654009,0.07121821,44912.0,44911.0,0.81841608]
[1633078655412,0.07121821,44912.0,44911.0,0.78541608]
[1633078655610,0.07121821,44912.0,44911.0,0.68541608]
[1633078656075,0.07121821,44912.0,44911.0,0.71508608]
[1633078657413,0.07293056,44912.0,44911.0,0.68408608]
[1633078657812,0.07293056,44912.0,44911.0,0.68394708]
[1633078658009,0.07293056,44912.0,44911.0,0.71794708]
[1633078658410,0.07293056,44912.0,44911.0,0.66994708]
[1633078659616,0.07293056,44912.0,44911.0,0.63594708]
[1633078660012,0.07293056,44912.0,44911.0,0.66994708]
[1633078660813,0.07293056,44912.0,44911.0,0.76994708]
[1633078661011,0.07720515,44912.0,44911.0,0.76994708]
[1633078661415,0.06276694,44912.0,44911.0,0.72983791]
[1633078661816,0.06276694,44912.0,44911.0,0.62983791]
[1633078663415,0.06276694,44912.0,44911.0,0.66383791]
[1633078664019,0.06276694,44912.0,44911.0,0.72983791]
[1633078664217,0.06276694,44912.0,44911.0,0.71416684]
[1633078664417,0.06276694,44912.0,44911.0,0.74916684]
[1633078665224,0.06276694,44912.0,44911.0,0.84360832]
[1633078665417,0.06276694,44912.0,44911.0,0.8439142]
[1633078665618,0.06276694,44912.0,44911.0,0.74916684]
[1633078665821,0.06276694,44912.0,44911.0,0.84547395]
[1633078666220,0.06276694,44912.0,44911.0,0.84647395]
[1633078666419,0.06276694,44912.0,44911.0,0.74647395]
[1633078667620,0.06276694,44912.0,44911.0,0.61416684]
[1633078668419,0.06276694,44912.0,44911.0,0.64416684]
[1633078670223,0.06276694,44912.0,44911.0,0.61416684]
[1633078670421,0.06276694,44912.0,44911.0,0.64216684]
[1633078672324,0.06276694,44912.0,44911.0,0.67316684]
[1633078673324,0.06276694,44912.0,44911.0,0.61416684]
[1633078674523,0.06276694,44912.0,44911.0,0.65116684]
[1633078675126,0.06276694,44912.0,44911.0,0.61416684]
[1633078675327,4.06276694,44912.0,44911.0,0.61416684]
[1633078676529,4.06276694,44912.0,44911.0,0.64230484]
[1633078676729,4.06276694,44912.0,44911.0,0.62664075]
[1633078677129,4.06038426,44912.0,44911.0,0.62664075]
[1633078677732,4.06038426,44912.0,44911.0,0.59464075]
[1633078678531,4.06038426,44912.0,44911.0,0.62264075]
[1633078679335,4.11038426,44912.0,44911.0,0.62264075]
[1633078679540,4.06038426,44912.0,44911.0,1.02265196]
[1633078679735,4.06038426,44912.0,44911.0,0.72018754]
[1633078679934,4.06038426,44912.0,44911.0,0.69218754]
[1633078680592,4.06038426,44912.0,44911.0,0.73618754]
[1633078681193,4.06038426,44912.0,44911.0,0.83618754]
[1633078681593,3.94126067,44912.0,44911.0,0.83618754]
[1633078681793,3.93933757,44912.0,44911.0,0.79218754]
[1633078682396,3.93933757,44912.0,44911.0,0.79090375]
[1633078682595,3.93933757,44912.0,44911.0,0.83490375]
[1633078682795,3.93933757,44912.0,44911.0,0.73490375]
[1633078683601,3.93933757,44912.0,44911.0,0.73242575]
[1633078684001,3.93933757,44912.0,44911.0,0.78842575]
[1633078684600,3.93933757,44912.0,44911.0,0.83242575]
[1633078686202,3.93933757,44912.0,44911.0,0.73242575]
[1633078686602,3.93933757,44912.0,44911.0,0.72742575]
[1633078687403,3.93933757,44912.0,44911.0,0.62742575]
[1633078688403,3.93933757,44912.0,44911.0,0.58842575]
[1633078688602,3.93933757,44912.0,44911.0,0.62242575]
[1633078689004,3.98933757,44912.0,44911.0,0.62242575]
[1633078690023,3.93933757,44912.0,44911.0,0.58842575]
[1633078690421,3.93933757,44912.0,44911.0,0.68842575]
[1633078690627,3.93933757,44912.0,44911.0,0.72642575]
[1633078690824,3.93933757,44912.0,44911.0,0.82642575]
[1633078691022,3.93933757,44912.0,44911.0,0.82767714]
[1633078691222,3.92307554,44912.0,44911.0,0.82767714]
[1633078692020,3.92307554,44912.0,44911.0,0.78967714]
[1633078692624,3.92307554,44912.0,44911.0,0.82967714]
[1633078693622,3.92307554,44912.0,44911.0,2.00967714]
[1633078694024,3.92307554,44912.0,44911.0,1.96967714]
[1633078694824,3.92307554,44912.0,44911.0,2.01067714]
[1633078695428,3.92196556,44912.0,44911.0,2.01067714]
[1633078695630,3.92196556,44912.0,44911.0,2.00942575]
[1633078696028,3.92196556,44912.0,44911.0,0.82942575]
[1633078696228,3.92196556,44912.0,44911.0,0.72942575]
[1633078696428,3.92196556,44912.0,44911.0,0.68842575]
[1633078696628,3.92196556,44912.0,44911.0,0.72542575]
[1633078696831,3.9212153,44912.0,44911.0,0.72542575]
[1633078698231,3.9212153,44912.0,44911.0,0.68842575]
[1633078698630,3.9212153,44912.0,44911.0,0.72642575]
[1633078700032,3.9212153,44912.0,44911.0,0.79642575]
[1633078700233,3.43559626,44912.0,44911.0,0.75842575]
[1633078700830,3.43559626,44912.0,44911.0,0.79642575]
[1633078701233,3.43559626,44912.0,44911.0,0.69642575]
[1633078702033,3.43559626,44912.0,44911.0,0.65842575]
[1633078702432,3.43559626,44912.0,44911.0,0.9074968]
[1633078702833,3.43559626,44912.0,44911.0,0.69642575]
[1633078703834,3.67230848,44912.0,44911.0,0.69642575]
[1633078704106,3.89672301,44912.0,44911.0,0.67412575]
[1633078704237,4.12383811,44912.0,44911.0,0.67412575]
[1633078704434,3.93712589,44912.0,44911.0,0.67412575]
[1633078704634,3.93712589,44912.0,44911.0,0.63612575]
[1633078704835,3.96212589,44912.0,44911.0,0.64612575]
[1633078705434,3.93712589,44912.0,44911.0,0.63612575]
[1633078706036,3.93659579,44912.0,44911.0,0.63612575]
[1633078706237,3.48681079,44912.0,44911.0,0.63612575]